[Event "37th Zalakaros Festival 2018"]
[Site "Zalakaros"]
[Date "2018.05.28"]
[Round "4"]
[White "Joo, Janos"]
[Black "Vegh, Endre"]
[Result "1/2-1/2"]
[ECO "B07"]
[WhiteElo "2071"]
[BlackElo "2264"]
[Annotator "NA"]
[PlyCount "135"]
[EventDate "2018.??.??"]
[EventType "swiss"]
[EventCountry "HUN"]
[SourceTitle "playchess.com"]
[Source "ChessBase"]
[SourceQuality "1"]
[TimeControl "40/5400+30:1800+30"]

1. e4 {[%emt 0:00:21]} d6 {[%emt 0:06:06]} 2. d4 {[%emt 0:00:11]} Nf6 {[%emt 0:01:30]} 3. Nc3 {[%emt 0:00:10]} c6 {[%emt 0:01:41]} 4. f4 {[%emt 0:00:59]} Qa5 {[%emt 0:01:07]} 5. Bd3 {[%emt 0:00:52]} e5 {[%emt 0:00:28]} 6. Nf3 {[%emt 0:01:09]} Nbd7 {[%emt 0:01:51]} 7. O-O {[%emt 0:00:39]} Be7 {[%emt 0:00:29]} 8. Be3 {[%emt 0:01:45]} O-O {[%emt 0:01:59]} 9. Qe1 {[%emt 0:01:13]} Qc7 {[%emt 0:00:38]} 10. Kh1 {[%emt 0:00:57]} Re8 {[%emt 0:01:48]} 11. fxe5 {[%emt 0:01:50]} dxe5 {[%emt 0:00:31]} 12. dxe5 {[%emt 0:00:38]} Nxe5 {[%emt 0:00:44]} 13. Nxe5 {[%emt 0:00:16]} Qxe5 {[%emt 0:00:07]} 14. Bf4 {[%emt 0:00:27]} Qh5 {[%emt 0:01:15]} 15. e5 {[%emt 0:03:27]} Nd5 {[%emt 0:06:47]} 16. Nxd5 {[%emt 0:00:59]} cxd5 {[%emt 0:00:14]} 17. Rd1 {[%emt 0:08:51]} Bg4 {[%emt 0:07:39]} 18. Rd2 {[%emt 0:01:06]} Bg5 {[%emt 0:01:32]} 19. Rdf2 {[%emt 0:04:49]} Bh4 {[%emt 0:05:02]} 20. g3 {[%emt 0:00:02]} Bd8 {[%emt 0:01:07]} 21. Be2 {[%emt 0:03:23]} Bb6 {[%emt 0:06:13]} 22. Bxg4 {[%emt 0:01:23]} Qxg4 {[%emt 0:00:15]} 23. Qe2 {[%emt 0:06:02]} Qe6 {[%emt 0:03:52]} 24. Rg2 {[%emt 0:04:28]} f6 {[%emt 0:03:28]} 25. Re1 {[%emt 0:03:34]} g5 {[%emt 0:02:18]} 26. Bc1 {[%emt 0:03:38]} Qxe5 {[%emt 0:05:01]} 27. Qxe5 {[%emt 0:00:10]} Rxe5 {[%emt 0:00:11]} 28. Rxe5 {[%emt 0:00:15]} fxe5 {[%emt 0:00:06]} 29. Re2 {[%emt 0:00:17]} e4 {[%emt 0:01:47]} 30. Bxg5 {[%emt 0:00:08]} Re8 {[%emt 0:06:35]} 31. c3 {[%emt 0:04:56]} Kf7 {[%emt 0:01:42]} 32. Kg2 {[%emt 0:00:18]} Ke6 {[%emt 0:04:01]} 33. Bh6 {[%emt 0:05:11]} Kd6 {[%emt 0:04:42]} 34. Re1 {[%emt 0:00:23]} Kc5 {[%emt 0:04:12]} 35. Kf1 {[%emt 0:01:06]} Kc4 {[%emt 0:02:37]} 36. Ke2 {[%emt 0:00:40]} Re6 {[%emt 0:00:39]} 37. Bg7 {[%emt 0:02:07]} Re7 {[%emt 0:03:03]} 38. b3+ {[%emt 0:00:31]} Kb5 {[%emt 0:00:10]} 39. Bf6 {[%emt 0:03:21]} Rf7 {[%emt 0:00:48]} 40. Rf1 {[%emt 0:00:00]} Bc7 {[%emt 0:04:18]} 41. Rf2 {[%emt 0:03:25]} Kc6 {[%emt 0:03:10]} 42. g4 {[%emt 0:01:25]} Bxh2 {[%emt 0:02:01]} 43. Rxh2 {[%emt 0:02:34]} Rxf6 {[%emt 0:00:06]} 44. Rxh7 {[%emt 0:00:21]} Rg6 {[%emt 0:00:50]} 45. Rh4 {[%emt 0:00:40]} b5 {[%emt 0:02:27]} 46. Ke3 {[%emt 0:01:05]} Kc5 {[%emt 0:01:12]} 47. Kf4 {[%emt 0:04:02]} Rg8 {[%emt 0:02:11]} 48. Rh3 {[%emt 0:03:24]} Rf8+ {[%emt 0:03:53]} 49. Ke3 {[%emt 0:00:28]} Re8 {[%emt 0:03:03]} 50. g5 {[%emt 0:02:11]} a5 {[%emt 0:00:54]} 51. a3 {[%emt 0:02:00]} a4 {[%emt 0:01:25]} 52. bxa4 {[%emt 0:01:22]} bxa4 {[%emt 0:00:08]} 53. g6 {[%emt 0:00:24]} Kc4 {[%emt 0:06:11]} 54. Rh5 {[%emt 0:02:05]} Rg8 {[%emt 0:01:52]} 55. Rg5 {[%emt 0:00:54]} Kxc3 {[%emt 0:00:56]} 56. Rxd5 {[%emt 0:00:12]} Rxg6 {[%emt 0:00:37]} 57. Kxe4 {[%emt 0:00:25]} Kb3 {[%emt 0:00:53]} 58. Rd3+ {[%emt 0:01:50]} Kb2 {[%emt 0:00:10]} 59. Ke3 {[%emt 0:00:17]} Rb6 {[%emt 0:00:33]} 60. Kd2 {[%emt 0:03:53]} Rb3 {[%emt 0:01:02]} 61. Rd4 {[%emt 0:05:06]} Kxa3 {[%emt 0:01:22]} 62. Rc4 {[%emt 0:02:23]} Rb2+ {[%emt 0:00:52]} 63. Kc1 {[%emt 0:01:00]} Rg2 {[%emt 0:00:54]} 64. Rc3+ {[%emt 0:00:47]} Kb4 {[%emt 0:00:19]} 65. Rc2 {[%emt 0:00:30]} Rg1+ {[%emt 0:00:51]} 66. Kb2 {[%emt 0:00:37]} a3+ {[%emt 0:00:11]} 67. Ka2 {[%emt 0:00:16]} Rd1 {[%emt 0:00:18]} 68. Rg2 {[%emt 0:00:21]} 1/2-1/2

[Event "37th Zalakaros Festival 2018"]
[Site "Zalakaros"]
[Date "2018.05.28"]
[Round "4"]
[White "Virag, Balint"]
[Black "Doric, Nenad"]
[Result "0-1"]
[ECO "C84"]
[WhiteElo "2065"]
[BlackElo "2250"]
[Annotator "NA"]
[PlyCount "72"]
[EventDate "2018.??.??"]
[EventType "swiss"]
[EventCountry "HUN"]
[SourceTitle "playchess.com"]
[Source "ChessBase"]
[SourceQuality "1"]
[TimeControl "40/5400+30:1800+30"]

1. e4 {[%emt 0:01:01]} e5 {[%emt 0:00:55]} 2. Nf3 {[%emt 0:00:18]} Nc6 {[%emt 0:00:11]} 3. Bb5 {[%emt 0:00:11]} a6 {[%emt 0:00:24]} 4. Ba4 {[%emt 0:00:11]} Nf6 {[%emt 0:00:23]} 5. O-O {[%emt 0:00:17]} Be7 {[%emt 0:00:22]} 6. d3 {[%emt 0:00:15]} d6 {[%emt 0:03:30]} 7. Nc3 {[%emt 0:00:29]} O-O {[%emt 0:04:20]} 8. h3 {[%emt 0:01:08]} b5 {[%emt 0:01:39]} 9. Bb3 {[%emt 0:00:42]} Na5 {[%emt 0:01:37]} 10. Be3 {[%emt 0:01:23]} Bb7 {[%emt 0:05:57]} 11. Nd2 {[%emt 0:02:01]} Nxb3 {[%emt 0:01:58]} 12. axb3 {[%emt 0:00:27]} d5 {[%emt 0:05:17]} 13. Bg5 {[%emt 0:01:11]} dxe4 {[%emt 0:03:58]} 14. Ncxe4 {[%emt 0:03:55]} Nd5 {[%emt 0:06:18]} 15. Bxe7 {[%emt 0:03:57]} Qxe7 {[%emt 0:00:17]} 16. Nf3 {[%emt 0:00:38]} f5 {[%emt 0:09:30]} 17. Ned2 {[%emt 0:00:42]} Qf6 {[%emt 0:02:00]} 18. Re1 {[%emt 0:03:05]} Rae8 {[%emt 0:01:02]} 19. g3 {[%emt 0:04:38]} e4 {[%emt 0:03:11]} 20. dxe4 {[%emt 0:13:10]} fxe4 {[%emt 0:02:26]} 21. Nxe4 {[%emt 0:01:21]} Qxf3 {[%emt 0:04:39]} 22. Qxf3 {[%emt 0:00:56]} Rxf3 {[%emt 0:00:07]} 23. c4 {[%emt 0:00:22]} Ne7 {[%emt 0:02:23]} 24. Nc5 {[%emt 0:00:15]} Bc8 {[%emt 0:05:07]} 25. Nxa6 {[%emt 0:07:16]} Bxa6 {[%emt 0:01:47]} 26. Rxa6 {[%emt 0:00:03]} Kf7 {[%emt 0:03:22]} 27. cxb5 {[%emt 0:01:04]} Rxb3 {[%emt 0:00:28]} 28. Ra3 {[%emt 0:00:41]} Rxa3 {[%emt 0:03:16]} 29. bxa3 {[%emt 0:00:07]} Ra8 {[%emt 0:00:06]} 30. Rc1 {[%emt 0:01:42]} Nd5 {[%emt 0:00:43]} 31. Rc5 {[%emt 0:01:12]} Ke6 {[%emt 0:00:27]} 32. Rc6+ {[%emt 0:00:32]} Ke5 {[%emt 0:00:18]} 33. f4+ {[%emt 0:00:10]} Kd4 {[%emt 0:01:08]} 34. Kf2 {[%emt 0:00:49]} Rxa3 {[%emt 0:00:11]} 35. Rc1 {[%emt 0:00:19]} Nc3 {[%emt 0:00:49]} 36. Re1 {[%emt 0:00:20]} Ne4+ 0-1

[Event "37th Zalakaros Festival 2018"]
[Site "Zalakaros"]
[Date "2018.05.29"]
[Round "5"]
[White "Meszaros, Tamas"]
[Black "Chubar, Vladimir"]
[Result "1-0"]
[ECO "C10"]
[WhiteElo "2407"]
[BlackElo "2011"]
[Annotator "NA"]
[PlyCount "101"]
[EventDate "2018.??.??"]
[EventType "swiss"]
[EventCountry "HUN"]
[SourceTitle "playchess.com"]
[Source "ChessBase"]
[SourceQuality "1"]
[TimeControl "40/5400+30:1800+30"]

1. e4 {[%emt 0:00:03]} e6 {[%emt 0:05:12]} 2. d4 {[%emt 0:00:07]} d5 {[%emt 0:00:16]} 3. Nd2 {[%emt 0:00:11]} dxe4 {[%emt 0:00:51]} 4. Nxe4 {[%emt 0:00:07]} Bd7 {[%emt 0:00:59]} 5. Nf3 {[%emt 0:00:10]} Bc6 {[%emt 0:00:13]} 6. Bd3 {[%emt 0:00:06]} Nd7 {[%emt 0:00:42]} 7. Qe2 {[%emt 0:00:10]} Be7 {[%emt 0:00:33]} 8. Neg5 {[%emt 0:00:13]} Bxf3 {[%emt 0:05:52]} 9. Nxf3 {[%emt 0:02:52]} Ngf6 {[%emt 0:00:40]} 10. O-O {[%emt 0:00:27]} O-O {[%emt 0:01:00]} 11. c4 {[%emt 0:00:15]} c6 {[%emt 0:04:00]} 12. b3 {[%emt 0:01:31]} a5 {[%emt 0:02:19]} 13. a3 {[%emt 0:02:15]} Re8 {[%emt 0:02:41]} 14. Bb2 {[%emt 0:00:42]} g6 {[%emt 0:01:10]} 15. Bc3 {[%emt 0:17:59]} Nh5 {[%emt 0:02:37]} 16. g3 {[%emt 0:00:44]} Qb6 {[%emt 0:04:10]} 17. Qb2 {[%emt 0:12:18]} Bf6 {[%emt 0:04:29]} 18. Ne5 {[%emt 0:17:55]} Nxe5 {[%emt 0:04:22]} 19. dxe5 {[%emt 0:00:04]} Be7 {[%emt 0:00:55]} 20. b4 {[%emt 0:02:28]} axb4 {[%emt 0:06:18]} 21. axb4 {[%emt 0:00:05]} Rxa1 {[%emt 0:00:23]} 22. Rxa1 {[%emt 0:00:05]} Rd8 {[%emt 0:00:55]} 23. Be4 {[%emt 0:05:44]} Ng7 {[%emt 0:04:34]} 24. Qa3 {[%emt 0:12:22]} Nf5 {[%emt 0:03:38]} 25. Qa7 {[%emt 0:04:05]} Qc7 {[%emt 0:01:58]} 26. Kg2 {[%emt 0:01:35]} Rd7 {[%emt 0:05:13]} 27. Qa5 {[%emt 0:09:53]} Kg7 {[%emt 0:06:36]} 28. Qxc7 {[%emt 0:03:24]} Rxc7 {[%emt 0:00:05]} 29. Ra7 {[%emt 0:04:54]} Bf8 {[%emt 0:01:13]} 30. Ra8 {[%emt 0:01:44]} b5 {[%emt 0:02:56]} 31. c5 {[%emt 0:00:28]} Ne7 {[%emt 0:00:09]} 32. Bd2 {[%emt 0:00:26]} h6 {[%emt 0:00:17]} 33. Bxh6+ {[%emt 0:00:26]} Kxh6 {[%emt 0:00:06]} 34. Rxf8 {[%emt 0:00:03]} Nd5 {[%emt 0:02:03]} 35. Bxd5 {[%emt 0:00:26]} exd5 {[%emt 0:00:18]} 36. Rd8 {[%emt 0:01:08]} Kg5 {[%emt 0:00:10]} 37. f4+ {[%emt 0:00:10]} Kf5 {[%emt 0:00:02]} 38. Kf3 {[%emt 0:00:09]} Ra7 {[%emt 0:00:32]} 39. g4+ {[%emt 0:00:11]} Ke6 {[%emt 0:00:02]} 40. Rd6+ {[%emt 0:00:00]} Ke7 {[%emt 0:00:06]} 41. f5 {[%emt 0:10:28]} g5 {[%emt 0:02:56]} 42. f6+ {[%emt 0:00:10]} Ke8 {[%emt 0:00:07]} 43. Rxc6 {[%emt 0:00:03]} Ra3+ {[%emt 0:01:16]} 44. Kf2 {[%emt 0:00:08]} Rb3 {[%emt 0:01:22]} 45. Rc7 {[%emt 0:04:16]} Rxb4 {[%emt 0:00:48]} 46. c6 {[%emt 0:01:07]} Kd8 {[%emt 0:00:44]} 47. Rxf7 {[%emt 0:00:14]} Rxg4 {[%emt 0:00:40]} 48. e6 {[%emt 0:00:37]} Rf4+ {[%emt 0:00:56]} 49. Kg3 {[%emt 0:00:04]} Re4 {[%emt 0:01:36]} 50. Rd7+ {[%emt 0:00:05]} Kc8 {[%emt 0:00:08]} 51. f7 {[%emt 0:00:05]} 1-0

[Event "37th Zalakaros Festival 2018"]
[Site "Zalakaros"]
[Date "2018.05.29"]
[Round "5"]
[White "Fancsy, Imre"]
[Black "Jamrich, Gyorgy"]
[Result "1/2-1/2"]
[ECO "A06"]
[WhiteElo "2388"]
[BlackElo "2213"]
[Annotator "NA"]
[PlyCount "87"]
[EventDate "2018.??.??"]
[EventType "swiss"]
[EventCountry "HUN"]
[SourceTitle "playchess.com"]
[Source "ChessBase"]
[SourceQuality "1"]
[TimeControl "40/5400+30:1800+30"]

1. Nf3 {[%emt 0:06:17]} d5 {[%emt 0:00:38]} 2. c4 {[%emt 0:00:30]} c6 {[%emt 0:00:41]} 3. g3 {[%emt 0:03:13]} dxc4 {[%emt 0:00:58]} 4. Bg2 {[%emt 0:00:48]} Nd7 {[%emt 0:00:15] A11: English Opening: 1...c6} 5. O-O {[%emt 0:06:27]} Nb6 {[%emt 0:02:15]} 6. a4 {[%emt 0:05:00]} a5 {[%emt 0:00:07]} 7. Na3 {[%emt 0:04:18]} Nf6 {[%emt 0:13:48]} 8. Qc2 {[%emt 0:02:08]} Bg4 {[%emt 0:06:48]} ({Predecessor:} 8... g6 9. Nxc4 Nxc4 10. Qxc4 Bg7 11. d3 O-O 12. Bd2 Nd5 13. Qc1 Qb6 14. Bc3 {½-½ (54) Pantsulaia,L (2595)-Grachev,B (2705) Plovdiv 2012}) 9. Nxc4 {[%emt 0:01:46]} Nxc4 {[%emt 0:00:22]} 10. Qxc4 {[%emt 0:00:05]} Bxf3 {[%emt 0:01:16]} 11. Bxf3 {[%emt 0:00:27]} e6 {[%emt 0:00:07]} 12. d4 {[%emt 0:05:06]} Bb4 {[%emt 0:00:41]} 13. e4 {[%emt 0:05:39]} O-O {[%emt 0:02:00]} 14. Be3 {[%emt 0:05:45]} Qe7 {[%emt 0:03:43]} 15. h3 {[%emt 0:03:58]} Rfe8 {[%emt 0:05:07]} 16. Bg2 {[%emt 0:06:54]} e5 {[%emt 0:04:12]} 17. dxe5 {[%emt 0:09:33]} Qxe5 {[%emt 0:01:08]} 18. Bd4 {[%emt 0:02:35]} Qe6 {[%emt 0:00:08]} 19. Qxe6 {[%emt 0:04:26]} fxe6 {[%emt 0:07:58]} 20. Rfd1 {[%emt 0:05:52]} Rad8 {[%emt 0:01:25]} 21. Bb6 {[%emt 0:02:15]} Rd7 {[%emt 0:03:18]} 22. f3 {[%emt 0:00:21]} Ree7 {[%emt 0:00:46]} 23. Bf1 {[%emt 0:04:35]} Rxd1 {[%emt 0:00:20]} 24. Rxd1 {[%emt 0:00:01]} Rd7 {[%emt 0:00:07]} 25. Be2 {[%emt 0:01:27]} Rxd1+ {[%emt 0:01:19]} 26. Bxd1 {[%emt 0:00:13]} Nd7 {[%emt 0:00:06]} 27. Bc7 {[%emt 0:00:55]} Kf7 {[%emt 0:02:49]} 28. f4 {[%emt 0:02:34]} Ke7 {[%emt 0:02:19]} 29. Bc2 {[%emt 0:00:15]} Bc5+ {[%emt 0:01:30]} 30. Kg2 {[%emt 0:01:42]} Bb6 {[%emt 0:00:05]} 31. Bxb6 {[%emt 0:00:59]} Nxb6 {[%emt 0:00:05]} 32. Kf3 {[%emt 0:01:36]} Nc4 {[%emt 0:05:22]} 33. b3 {[%emt 0:00:47]} Nb6 {[%emt 0:06:26]} 34. e5 {[%emt 0:00:34]} h6 {[%emt 0:00:13]} 35. Ke3 {[%emt 0:01:24]} Nd5+ {[%emt 0:03:25]} 36. Kd4 {[%emt 0:00:28]} b6 {[%emt 0:01:26]} 37. Be4 {[%emt 0:00:39]} Nb4 {[%emt 0:11:04]} 38. h4 {[%emt 0:03:01]} Kf7 {[%emt 0:00:35]} 39. h5 {[%emt 0:03:49]} Ke7 {[%emt 0:00:10]} 40. g4 {[%emt 0:00:00]} Kf7 $1 {[%emt 0:00:20]} 41. Bg6+ {[%emt 0:11:47]} (41. f5 $16) 41... Ke7 {[%emt 0:02:21]} 42. Be4 {[%emt 0:14:51]} (42. Bd3 $16) 42... Kf7 {[%emt 0:00:24]} 43. Bh7 {[%emt 0:01:04]} Nd5 $14 {[%emt 0:00:33]} 44. Bg6+ $1 {[%emt 0:02:23]} 1/2-1/2

[Event "37th Zalakaros Festival 2018"]
[Site "Zalakaros"]
[Date "2018.05.29"]
[Round "5"]
[White "Szeberenyi, Adam"]
[Black "Czupor, Attila"]
[Result "1-0"]
[ECO "D11"]
[WhiteElo "2372"]
[BlackElo "2209"]
[Annotator "NA"]
[PlyCount "67"]
[EventDate "2018.??.??"]
[EventType "swiss"]
[EventCountry "HUN"]
[SourceTitle "playchess.com"]
[Source "ChessBase"]
[SourceQuality "1"]
[TimeControl "40/5400+30:1800+30"]

1. d4 {[%emt 0:00:04]} d5 {[%emt 0:00:54]} 2. c4 {[%emt 0:00:56]} c6 {[%emt 0:00:32]} 3. e3 {[%emt 0:00:37]} Nf6 {[%emt 0:00:28]} 4. Nf3 {[%emt 0:00:05]} e6 {[%emt 0:00:57]} 5. Bd3 {[%emt 0:01:17]} Nbd7 {[%emt 0:01:42]} 6. Nbd2 {[%emt 0:00:11]} Bd6 {[%emt 0:01:04]} 7. O-O {[%emt 0:01:15]} O-O {[%emt 0:00:40]} 8. e4 {[%emt 0:00:22]} e5 {[%emt 0:02:43]} 9. cxd5 {[%emt 0:01:40]} cxd5 {[%emt 0:00:13]} 10. exd5 {[%emt 0:00:11]} exd4 {[%emt 0:00:14]} 11. Ne4 {[%emt 0:00:06]} Nxe4 {[%emt 0:01:05]} 12. Bxe4 {[%emt 0:00:08]} Nf6 {[%emt 0:01:30]} 13. Bg5 {[%emt 0:04:20]} Be7 {[%emt 0:08:59]} 14. Bc2 {[%emt 0:04:43]} h6 {[%emt 0:09:35]} 15. Bh4 {[%emt 0:01:04]} Nxd5 {[%emt 0:01:12]} 16. Bxe7 {[%emt 0:03:11]} Nxe7 {[%emt 0:00:52]} 17. Qxd4 {[%emt 0:01:01]} Be6 {[%emt 0:09:40]} 18. Rfe1 {[%emt 0:07:31]} Re8 {[%emt 0:09:32]} 19. Ba4 {[%emt 0:09:10]} Nc6 {[%emt 0:06:43]} 20. Qc5 {[%emt 0:19:47]} Qb6 {[%emt 0:03:18]} 21. Qxb6 {[%emt 0:01:37]} axb6 {[%emt 0:00:05]} 22. Bb5 {[%emt 0:00:13]} Red8 {[%emt 0:02:54]} 23. a3 {[%emt 0:04:03]} Na5 {[%emt 0:07:10]} 24. Rac1 {[%emt 0:03:36]} Rac8 {[%emt 0:04:58]} 25. Rxc8 {[%emt 0:01:23]} Rxc8 {[%emt 0:00:06]} 26. Nd4 {[%emt 0:00:29]} Bd5 {[%emt 0:01:11]} 27. Nf5 {[%emt 0:03:21]} Rc5 {[%emt 0:02:38]} 28. b4 {[%emt 0:00:28]} Rxb5 {[%emt 0:01:46]} 29. Nd6 {[%emt 0:01:45]} Rc5 {[%emt 0:02:14]} 30. bxc5 {[%emt 0:00:26]} bxc5 {[%emt 0:00:09]} 31. Re5 {[%emt 0:00:39]} Bc6 {[%emt 0:01:21]} 32. Rxc5 {[%emt 0:00:19]} Nb3 {[%emt 0:00:07]} 33. Re5 {[%emt 0:03:16]} Kf8 {[%emt 0:00:43]} 34. Nxb7 {[%emt 0:00:34] Ke7} 1-0

[Event "37th Zalakaros Festival 2018"]
[Site "Zalakaros"]
[Date "2018.05.29"]
[Round "5"]
[White "Krykun, Yuriy"]
[Black "Kareva, Natalia"]
[Result "1-0"]
[ECO "A92"]
[WhiteElo "2338"]
[BlackElo "2206"]
[Annotator "ChessBase"]
[PlyCount "131"]
[EventDate "2018.??.??"]
[EventType "swiss"]
[EventCountry "HUN"]
[SourceTitle "playchess.com"]
[Source "ChessBase"]
[SourceQuality "1"]
[TimeControl "40/5400+30:1800+30"]

1. d4 {[%emt 0:01:16]} f5 {[%emt 0:03:41]} 2. g3 {[%emt 0:06:15]} Nf6 {[%emt 0:00:25]} 3. Bg2 {[%emt 0:00:06]} e6 {[%emt 0:00:06]} 4. Nf3 {[%emt 0:00:59]} Be7 {[%emt 0:03:13]} 5. O-O {[%emt 0:00:20]} O-O {[%emt 0:00:04]} 6. c4 {[%emt 0:01:33]} Ne4 {[%emt 0:03:00]} 7. d5 {[%emt 0:01:49]} Bf6 {[%emt 0:00:59]} 8. Nbd2 {[%emt 0:05:48]} Nc5 {[%emt 0:12:43]} 9. Nb3 {[%emt 0:07:08]} Qe7 {[%emt 0:00:58]} 10. Nxc5 {[%emt 0:23:14]} Qxc5 {[%emt 0:00:45]} 11. Qd3 {[%emt 0:00:10]} Na6 {[%emt 0:04:50]} 12. Be3 {[%emt 0:03:39]} Qe7 {[%emt 0:01:19]} 13. Qc2 {[%emt 0:01:32]} Nc5 {[%emt 0:05:40]} 14. Rad1 {[%emt 0:02:36]} a5 {[%emt 0:01:27]} 15. Nd4 {[%emt 0:00:18]} Bxd4 {[%emt 0:02:31]} 16. Bxd4 {[%emt 0:09:08]} e5 {[%emt 0:01:52]} 17. Bxc5 {[%emt 0:05:04]} Qxc5 {[%emt 0:00:19]} 18. d6 {[%emt 0:00:03]} c6 {[%emt 0:09:59]} 19. g4 {[%emt 0:02:17]} b5 {[%emt 0:03:16]} 20. gxf5 {[%emt 0:07:58]} Qxc4 {[%emt 0:01:38]} 21. Qxc4+ {[%emt 0:03:14]} bxc4 {[%emt 0:00:32]} 22. Be4 {[%emt 0:00:16]} Ba6 {[%emt 0:00:28]} 23. Rd2 {[%emt 0:00:14]} Rab8 {[%emt 0:03:37]} 24. f3 {[%emt 0:01:20]} Rb6 {[%emt 0:01:59]} 25. Rc1 {[%emt 0:01:28]} Rfb8 {[%emt 0:00:12]} 26. Rcc2 {[%emt 0:00:09]} Kf7 {[%emt 0:00:26]} 27. Kf2 {[%emt 0:00:12]} Kf6 {[%emt 0:00:14]} 28. Ke1 {[%emt 0:01:18]} a4 {[%emt 0:09:35]} 29. a3 {[%emt 0:04:19]} Rb3 {[%emt 0:00:28]} 30. Rc3 {[%emt 0:01:11]} Rxb2 {[%emt 0:00:19]} 31. Rxb2 {[%emt 0:00:44]} Rxb2 {[%emt 0:00:06]} 32. Bc2 {[%emt 0:00:04]} Bb5 {[%emt 0:04:38]} 33. Kd2 {[%emt 0:01:51]} Ra2 {[%emt 0:04:10]} 34. Kc1 {[%emt 0:00:05]} Ra1+ {[%emt 0:00:04]} 35. Bb1 {[%emt 0:00:25]} Rxb1+ {[%emt 0:00:19]} 36. Kxb1 {[%emt 0:00:01]} Kxf5 {[%emt 0:00:08]} 37. Re3 {[%emt 0:01:36]} g5 {[%emt 0:04:22]} 38. Kc2 {[%emt 0:01:54]} h5 {[%emt 0:01:19]} 39. Kc3 {[%emt 0:02:16]} c5 {[%emt 0:00:15]} 40. Re4 {[%emt 0:00:00]} g4 {[%emt 0:05:35]} 41. Kd2 {[%emt 0:07:23]} c3+ {[%emt 0:17:57]} 42. Kxc3 {[%emt 0:10:33]} Bc6 {[%emt 0:06:26]} 43. Rc4 {[%emt 0:01:28]} Bb5 {[%emt 0:06:02]} 44. fxg4+ {[%emt 0:00:35]} hxg4 {[%emt 0:00:05]} 45. e4+ {[%emt 0:01:21]} Ke6 {[%emt 0:00:04]} 46. Rxc5 {[%emt 0:00:09]} Bc6 {[%emt 0:00:04]} 47. Kd3 {[%emt 0:05:25]} Kxd6 {[%emt 0:00:18]} 48. Rc1 {[%emt 0:00:06]} Bb5+ {[%emt 0:03:21]} 49. Ke3 {[%emt 0:00:19]} Ke6 {[%emt 0:03:56]} 50. Rg1 {[%emt 0:00:20]} d5 {[%emt 0:00:04]} 51. Rxg4 {[%emt 0:00:52]} d4+ {[%emt 0:00:40]} 52. Kd2 {[%emt 0:00:04]} Kf6 {[%emt 0:00:07]} 53. h4 {[%emt 0:09:55]} Bd7 {[%emt 0:01:00]} 54. Rg8 {[%emt 0:00:07]} Bc6 {[%emt 0:00:13]} 55. Kd3 {[%emt 0:03:30]} Bb5+ {[%emt 0:00:05]} 56. Kd2 {[%emt 0:00:03]} Bc6 {[%emt 0:00:04]} 57. Rc8 {[%emt 0:00:36]} Bxe4 {[%emt 0:00:13]} 58. Rc4 {[%emt 0:00:05]} Bf3 {[%emt 0:03:43]} 59. Rxa4 {[%emt 0:00:06]} Ke6 {[%emt 0:00:10]} 60. Rb4 {[%emt 0:01:41]} Kd5 {[%emt 0:00:13]} 61. Rb5+ {[%emt 0:00:04]} Kd6 {[%emt 0:00:23]} 62. a4 {[%emt 0:01:01]} e4 {[%emt 0:01:17]} 63. h5 {[%emt 0:00:22]} e3+ {[%emt 0:01:17]} 64. Kd3 {[%emt 0:00:12]} Bg2 {[%emt 0:05:05]} 65. Kxd4 {[%emt 0:00:13]} Bc6 {[%emt 0:00:16]} 66. Kxe3 {Kd5 Ke4+} 1-0

[Event "37th Zalakaros Festival 2018"]
[Site "Zalakaros"]
[Date "2018.05.29"]
[Round "5"]
[White "Ianov, Viktor"]
[Black "Horak, Jiri"]
[Result "1/2-1/2"]
[ECO "A13"]
[WhiteElo "2285"]
[BlackElo "2131"]
[Annotator "NA"]
[PlyCount "64"]
[EventDate "2018.??.??"]
[EventType "swiss"]
[EventCountry "HUN"]
[SourceTitle "playchess.com"]
[Source "ChessBase"]
[SourceQuality "1"]
[TimeControl "40/5400+30:1800+30"]

1. c4 {[%emt 0:00:30]} e6 {[%emt 0:00:38]} 2. g3 {[%emt 0:00:08]} d5 {[%emt 0:00:03]} 3. Bg2 {[%emt 0:00:11]} Nf6 {[%emt 0:00:14]} 4. Nf3 {[%emt 0:00:09]} c6 {[%emt 0:00:20]} 5. Qc2 {[%emt 0:00:15]} Nbd7 {[%emt 0:00:52]} 6. O-O {[%emt 0:00:11]} Be7 {[%emt 0:00:21]} 7. d4 {[%emt 0:00:08]} Ne4 {[%emt 0:00:56]} 8. Rd1 {[%emt 0:01:46]} O-O {[%emt 0:00:34]} 9. Nc3 {[%emt 0:00:33]} f5 {[%emt 0:02:16]} 10. b3 {[%emt 0:00:43]} Ndf6 {[%emt 0:02:11]} 11. Ne5 {[%emt 0:01:05]} Bd7 {[%emt 0:01:30]} 12. Bb2 {[%emt 0:00:49]} Be8 {[%emt 0:02:01]} 13. Rac1 {[%emt 0:01:44]} Nd7 {[%emt 0:05:35]} 14. Nd3 {[%emt 0:02:09]} g5 {[%emt 0:04:25]} 15. f3 {[%emt 0:02:13]} Nxc3 {[%emt 0:00:22]} 16. Bxc3 {[%emt 0:00:09]} Bg6 {[%emt 0:03:40]} 17. Qd2 {[%emt 0:03:52]} Rf7 {[%emt 0:06:19]} 18. Qe3 {[%emt 0:01:52]} Nf8 {[%emt 0:19:34]} 19. Ne5 {[%emt 0:04:46]} Rg7 {[%emt 0:00:31]} 20. Qd2 {[%emt 0:03:49]} Nd7 {[%emt 0:05:23]} 21. Nxg6 {[%emt 0:01:38]} Rxg6 {[%emt 0:00:30]} 22. e4 {[%emt 0:00:03]} Nf6 {[%emt 0:05:11]} 23. cxd5 {[%emt 0:02:42]} cxd5 {[%emt 0:00:09]} 24. e5 {[%emt 0:05:30]} Ne8 {[%emt 0:03:36]} 25. Bf1 {[%emt 0:00:38]} Rg7 {[%emt 0:01:05]} 26. Ba5 {[%emt 0:01:38]} b6 {[%emt 0:03:25]} 27. Bc3 {[%emt 0:00:16]} g4 {[%emt 0:04:50]} 28. f4 {[%emt 0:03:06]} Ba3 {[%emt 0:04:24]} 29. Bb2 {[%emt 0:00:16]} Bxb2 {[%emt 0:00:16]} 30. Qxb2 {[%emt 0:00:09]} Rc8 {[%emt 0:00:13]} 31. Ba6 {[%emt 0:02:41]} Rxc1 {[%emt 0:00:15]} 32. Rxc1 {[%emt 0:00:09]} Rc7 {[%emt 0:00:14]} 1/2-1/2

[Event "37th Zalakaros Festival 2018"]
[Site "Zalakaros"]
[Date "2018.05.29"]
[Round "5"]
[White "Doric, Nenad"]
[Black "Gombocz, Ferenc Jr"]
[Result "1-0"]
[ECO "C42"]
[WhiteElo "2250"]
[BlackElo "2077"]
[Annotator "NA"]
[PlyCount "53"]
[EventDate "2018.??.??"]
[EventType "swiss"]
[EventCountry "HUN"]
[SourceTitle "playchess.com"]
[Source "ChessBase"]
[SourceQuality "1"]
[TimeControl "40/5400+30:1800+30"]

1. e4 {[%emt 0:00:10]} e5 {[%emt 0:00:41]} 2. Nf3 {[%emt 0:00:13]} Nf6 {[%emt 0:00:06]} 3. Nxe5 {[%emt 0:00:42]} d6 {[%emt 0:00:07]} 4. Nf3 {[%emt 0:00:13]} Nxe4 {[%emt 0:00:07]} 5. d4 {[%emt 0:00:37]} d5 {[%emt 0:00:15]} 6. Bd3 {[%emt 0:00:26]} Nc6 {[%emt 0:00:08]} 7. O-O {[%emt 0:00:29]} Be7 {[%emt 0:00:06]} 8. c4 {[%emt 0:00:24]} Nb4 {[%emt 0:00:27]} 9. cxd5 {[%emt 0:00:36]} Nxd3 {[%emt 0:00:11]} 10. Qxd3 {[%emt 0:00:09]} Qxd5 {[%emt 0:00:09]} 11. Re1 {[%emt 0:00:14]} Bf5 {[%emt 0:00:43]} 12. Ne5 {[%emt 0:00:26]} O-O {[%emt 0:16:48]} 13. Nc3 {[%emt 0:01:40]} Nxc3 {[%emt 0:00:36]} 14. Qxf5 {[%emt 0:00:28]} Nb5 {[%emt 0:02:00]} 15. Ng6 {[%emt 0:00:57]} Qxf5 {[%emt 0:12:02]} 16. Nxe7+ {[%emt 0:01:39]} Kh8 {[%emt 0:00:05]} 17. Nxf5 {[%emt 0:00:10]} g6 {[%emt 0:00:28]} 18. a4 {[%emt 0:01:35]} Nd6 {[%emt 0:06:35]} 19. Nxd6 {[%emt 0:01:00]} cxd6 {[%emt 0:00:10]} 20. Bf4 {[%emt 0:00:15]} d5 {[%emt 0:01:40]} 21. Re7 {[%emt 0:00:27]} b6 {[%emt 0:01:04]} 22. Rc1 {[%emt 0:00:59]} Kg7 {[%emt 0:01:40]} 23. Rcc7 {[%emt 0:02:16]} a6 {[%emt 0:00:48]} 24. Be5+ {[%emt 0:00:50]} Kg8 {[%emt 0:00:08]} 25. Red7 {[%emt 0:00:26]} b5 {[%emt 0:03:21]} 26. a5 {[%emt 0:01:27]} Rac8 {[%emt 0:02:54]} 27. Rxf7 {[%emt 0:01:37]} 1-0